[Event "VIII Open Semana Santa 2024"]
[Site "San Vicente del Raspeig"]
[Date "2024.03.31"]
[Round "8.2"]
[White "Muthaiah AL"]
[Black "Yuffa, Daniil"]
[Result "1/2-1/2"]
[ECO "D02"]
[WhiteElo "2454"]
[BlackElo "2606"]
[Annotator "TA"]
[PlyCount "127"]
[EventDate "2024.03.27"]
[EventType "swiss"]
[EventCountry "ESP"]
[SourceTitle "playchess.com"]
[Source "ChessBase"]
[SourceQuality "1"]
[TimeControl "5400+30"]

{[%evp 41,127,0,0,0,0,0,12,9,11,0,-2,-4,0,0,0,-5,0,0,0,0,0,0,0,0,0,0,10,13,79,69,61,73,86,92,89,77,86,84,87,87,92,63,84,81,78,82,105,58,69,33,91,8,10,8,8,8,8,8,8,8,8,8,8,8,8,8,8,8,8,8,8,8,8,8,8,8,8,8,8,0,8,8,8,8,8,8,8,0]} 1. d4 {[%emt 0:01:05]} Nf6 {[%emt 0:00:28]} 2. Nf3 {[%emt 0:00:14]} d5 {[%emt 0:01:01]} 3. Bf4 {[%emt 0:00:36]} c5 {[%emt 0:01:40]} 4. e3 {[%emt 0:00:18]} Nc6 {[%emt 0:00:29]} 5. Nbd2 {[%emt 0:00:30]} e6 {[%emt 0:04:02]} 6. c3 {[%emt 0:00:58]} Be7 {[%emt 0:00:43] 6...cxd4 is becoming the main line.} 7. h3 {[%emt 0:01:09]} Bd6 {[%emt 0:00:38] D02: 1 d4 d5 2 Nf3 sidelines, including 2...Nf6 3 g3 and 2...Nf6 3 Bf4.} 8. dxc5 {[%emt 0:01:57]} Bxc5 {[%emt 0:00:47]} 9. Bd3 {[%emt 0:00:16]} O-O {[%emt 0:11:37]} 10. O-O {[%emt 0:00:41]} h6 {[%emt 0:09:17]} 11. e4 {[%emt 0:03:20]} Bd7 $146 {[%emt 0:09:17]} ({Predecessor:} 11... dxe4 12. Nxe4 Be7 13. Nxf6+ Bxf6 14. Be4 Qb6 15. Qb3 Be7 16. Qxb6 axb6 17. Be3 Bc5 18. Bxc5 bxc5 19. Bxc6 bxc6 {0-1 Hambleton,A (2436)-Esipenko,A (2692) Titled Tuesday intern op 09th Aug Late blitz 2022 (6)}) 12. exd5 {[%emt 0:07:01]} exd5 {[%emt 0:04:53]} 13. Nb3 {[%emt 0:11:45]} Bb6 {[%emt 0:00:06]} 14. Re1 {[%emt 0:00:36]} Re8 {[%emt 0:01:45]} 15. Nbd4 {[%emt 0:04:13]} Ne4 {[%emt 0:05:26]} 16. Qb3 {[%emt 0:13:44]} Qf6 {[%emt 0:12:33]} 17. Be3 {[%emt 0:04:13]} Rad8 {[%emt 0:08:07]} 18. Qc2 {[%emt 0:09:34]} Qg6 {[%emt 0:01:57]} 19. Nxc6 {[%emt 0:03:14]} bxc6 {[%emt 0:01:21]} 20. Nh4 {[%emt 0:01:34]} Qf6 {[%emt 0:00:44]} 21. Bxb6 {[%emt 0:02:07]} axb6 {[%emt 0:00:05]} 22. Bxe4 {[%emt 0:00:17]} dxe4 {[%emt 0:06:50]} 23. Rxe4 {[%emt 0:00:38]} g5 {[%emt 0:00:12]} 24. Rxe8+ {[%emt 0:02:44]} Rxe8 {[%emt 0:00:04]} 25. Nf3 {[%emt 0:00:12]} Bxh3 $1 {[%emt 0:00:37]} 26. Re1 {[%emt 0:02:10]} Rd8 {[%emt 0:00:54]} (26... Rxe1+ {simplifies} 27. Nxe1 Be6 28. a3 Kg7) 27. Rd1 {[%emt 0:03:09]} Re8 {[%emt 0:01:55]} 28. Re1 {[%emt 0:01:37]} Rd8 {[%emt 0:00:06]} (28... Rxe1+ {simplifies} 29. Nxe1 Be6 30. a3 Qf5) 29. Rd1 {[%emt 0:00:17]} Ra8 {[%emt 0:01:26]} 30. Qe4 {[%emt 0:02:32]} Bf5 {[%emt 0:00:22]} 31. Qd4 {[%emt 0:00:20]} Qxd4 {[%emt 0:01:43]} 32. Nxd4 {[%emt 0:00:15]} Bd7 {[%emt 0:00:38]} 33. Nf3 {[%emt 0:02:17]} Be8 {[%emt 0:01:35]} 34. a3 {[%emt 0:02:05]} f6 {[%emt 0:01:45] [#]} (34... Kf8 $11) 35. Rd6 $1 $16 {[%emt 0:01:53]} Kf7 {[%emt 0:00:09]} 36. Nd4 {[%emt 0:00:26]} Rc8 {[%emt 0:01:08] [#]} 37. g4 $1 {[%emt 0:02:08]} Rc7 {[%emt 0:04:49]} 38. Nf5 {[%emt 0:02:21]} h5 {[%emt 0:00:44]} 39. gxh5 {[%emt 0:02:03]} Bd7 {[%emt 0:00:06]} 40. Ng3 {[%emt 0:02:52]} Ke7 {[%emt 0:00:04]} 41. Rd1 {[%emt 0:00:51]} Be6 {[%emt 0:00:48]} 42. f3 {[%emt 0:00:22]} Rc8 {[%emt 0:01:07]} 43. Kf2 {[%emt 0:00:33]} Rg8 {[%emt 0:00:43]} 44. Rh1 {[%emt 0:02:15]} (44. a4 $16) 44... Kf7 $14 {[%emt 0:00:09]} 45. Ne4 {[%emt 0:03:50]} Rd8 {[%emt 0:00:46]} ({Black should play} 45... f5 $14 46. Ng3 Rd8) 46. h6 {[%emt 0:00:46]} (46. Kg3 $16) 46... Kg6 $1 $11 {[%emt 0:00:24]} 47. h7 {[%emt 0:00:14]} Rh8 {[%emt 0:00:05]} 48. Nd6 {[%emt 0:04:40]} Rxh7 {[%emt 0:01:15]} 49. Rxh7 {[%emt 0:00:07]} Kxh7 {[%emt 0:00:01]} 50. c4 {[%emt 0:01:23]} c5 {[%emt 0:01:42]} 51. b4 {[%emt 0:00:33]} cxb4 $1 {[%emt 0:01:26]} 52. axb4 {[%emt 0:00:01]} Kg6 {[%emt 0:01:24]} 53. b5 {[%emt 0:00:38]} f5 {[%emt 0:00:56]} 54. c5 {[%emt 0:00:28]} bxc5 {[%emt 0:00:03]} 55. b6 {[%emt 0:00:05]} Bd5 $1 {[%emt 0:00:03]} 56. b7 {[%emt 0:00:12]} Bxb7 $1 {[%emt 0:00:03]} 57. Nxb7 {[%emt 0:00:07]} c4 {[%emt 0:01:39]} 58. Nc5 {[%emt 0:01:07]} c3 {[%emt 0:00:19]} 59. Ke3 {[%emt 0:00:43]} Kh5 {[%emt 0:00:47]} 60. Kd3 {[%emt 0:01:05]} g4 {[%emt 0:00:30]} 61. fxg4+ {[%emt 0:00:26]} fxg4 {[%emt 0:00:06]} 62. Ne4 {[%emt 0:00:07]} g3 {[%emt 0:00:06]} 63. Nxg3+ {[%emt 0:00:05]} Kg4 {[%emt 0:00:02]} 64. Kxc3 {[%emt 0:00:02]} 1/2-1/2

[Event "VIII Open Semana Santa 2024"]
[Site "San Vicente del Raspeig"]
[Date "2024.03.31"]
[Round "8.3"]
[White "Badelka, Olga"]
[Black "Kourkoulos-Arditis, Stamatis"]
[Result "0-1"]
[ECO "E69"]
[WhiteElo "2377"]
[BlackElo "2556"]
[Annotator "TA"]
[PlyCount "70"]
[EventDate "2024.03.27"]
[EventType "swiss"]
[EventCountry "ESP"]
[SourceTitle "playchess.com"]
[Source "ChessBase"]
[SourceQuality "1"]
[TimeControl "5400+30"]

{[%evp 25,70,22,19,0,25,21,35,33,66,-18,67,5,6,21,50,-69,-54,-57,-69,-104,-128,-112,-25,-34,-22,-26,-39,-31,-28,-62,44,-137,-148,-147,-143,-225,-211,-417,-371,-447,-447,-671,-593,-705,-693,-622,-563]} 1. d4 {[%emt 0:00:03]} Nf6 {[%emt 0:00:07]} 2. c4 {[%emt 0:00:06]} g6 {[%emt 0:00:04]} 3. Nc3 {[%emt 0:00:14]} Bg7 {[%emt 0:00:04]} 4. Nf3 {[%emt 0:00:09]} O-O {[%emt 0:00:16]} 5. g3 {[%emt 0:00:12]} d6 {[%emt 0:00:06]} 6. Bg2 {[%emt 0:00:06]} Nbd7 {[%emt 0:00:19]} 7. O-O {[%emt 0:00:49]} e5 {[%emt 0:00:06]} 8. e4 {[%emt 0:01:55]} exd4 {[%emt 0:00:58]} 9. Nxd4 {[%emt 0:00:05]} Re8 {[%emt 0:00:07]} 10. Re1 {[%emt 0:01:28]} Nc5 {[%emt 0:00:13]} 11. h3 {[%emt 0:02:34]} h6 {[%emt 0:00:45]} 12. Rb1 {[%emt 0:07:14]} c6 {[%emt 0:05:18]} 13. b3 {[%emt 0:10:26][%cal Bb2b3,Bb3b4][%mdl 32]} a5 {[%emt 0:00:40][%cal Ba7a5,Ba5a4,Ba4a3][%mdl 32]} 14. Bb2 {[%emt 0:06:52]} a4 {[%emt 0:04:41]} 15. b4 {[%emt 0:04:05]} (15. bxa4 Nfd7 $15) (15. Nxa4 Nfxe4 16. h4 h5 $15) 15... a3 {[%emt 0:01:30]} 16. Ba1 {[%emt 0:00:06] White is slightly better.} Ne6 {[%emt 0:00:11]} 17. Nc2 {[%emt 0:01:18]} h5 {[%emt 0:12:22]} (17... Ng5 $11) 18. Qd2 {[%emt 0:02:01]} ({White should play} 18. Ne2 $1 $14) 18... h4 $11 {[%emt 0:05:15]} 19. g4 {[%emt 0:01:42]} (19. gxh4 $2 {perishes.} Nh5 20. e5 dxe5 (20... Bxe5 $2 21. Ne4 $19) 21. Qxd8 Rxd8 $19) 19... Nd7 {[%emt 0:00:24]} 20. Qxd6 {[%emt 0:15:16]} (20. f4 $14) 20... Ne5 $15 {[%emt 0:03:16]} 21. Qxd8 {[%emt 0:00:38]} Rxd8 {[%emt 0:00:05]} 22. Ne3 {[%emt 0:01:25]} Nf4 {[%emt 0:04:04] aiming for ...Ned3.} 23. Ne2 {[%emt 0:07:55]} Nxg2 {[%emt 0:24:58]} (23... Nfd3 $1 $17 {[%cal Rd3e1]} 24. Red1 Be6) 24. Kxg2 $11 {[%emt 0:00:04]} Be6 $36 {[%emt 0:00:04][%mdl 2048] Black is pushing.} 25. Bxe5 {[%emt 0:11:04]} Bxe5 {[%emt 0:00:05]} 26. f4 {[%emt 0:00:49]} Rd3 {[%emt 0:03:17]} 27. Kf2 {[%emt 0:01:19]} Bb2 {[%emt 0:01:24] Black is much more active.} ({Better is} 27... Bg7 $1 $15 28. Rbd1 Rad8 29. Rxd3 Rxd3) 28. f5 $2 {[%emt 0:00:11] [#]} (28. Rbd1 $14 {keeps the upper hand.} Rxe3 (28... Rad8 29. Rxd3 Rxd3 30. f5 $16) 29. Kxe3) 28... Rxe3 $1 $17 {[%emt 0:00:13][%mdl 512]} 29. Kxe3 {[%emt 0:00:55]} Bxc4 {[%emt 0:00:04]} 30. Nc1 {[%emt 0:12:31] [#]} (30. Rbc1 $17 Bxa2 (30... Bxc1+ 31. Nxc1 Rd8 32. Kf4 $15) 31. Rc2) 30... Rd8 $1 $19 {[%emt 0:00:57]} 31. Re2 $2 {[%emt 0:03:15]} (31. Kf4) 31... Rd1 {[%emt 0:03:26] ...Bd4+ is the strong threat.} 32. Rc2 {[%emt 0:00:03]} b5 {[%emt 0:00:07] Black is clearly winning.} ({Less strong is} 32... Bxa2 33. Rbxb2 axb2 34. Rxb2 $17) 33. e5 {[%emt 0:00:05]} (33. fxg6 $142 fxg6 34. Kf4) 33... Bxe5 {[%emt 0:03:30] ...g5 would now be deadly. This pair of bishops is nice.} 34. Rd2 {[%emt 0:00:33]} Re1+ {[%emt 0:04:12]} 35. Kf2 {[%emt 0:00:25]} Rh1 {[%emt 0:00:10] Weighted Error Value: White=0.61/Black=0.24 (precise) .  Mistake:       	White=6     	Black=3      Inaccurate:     	White=2     	---        OK:         	White=8     	Black=9      Best:        	White=1     	Black=3      Brilliant:      	---       	Black=1} 0-1

[Event "VIII Open Semana Santa 2024"]
[Site "San Vicente del Raspeig"]
[Date "2024.03.31"]
[Round "8.4"]
[White "Ivanchuk, Vasyl"]
[Black "Minzer, Claudio Javier"]
[Result "1/2-1/2"]
[ECO "B36"]
[WhiteElo "2625"]
[BlackElo "2398"]
[Annotator "TA"]
[PlyCount "106"]
[EventDate "2024.03.27"]
[EventType "swiss"]
[EventCountry "ESP"]
[SourceTitle "playchess.com"]
[Source "ChessBase"]
[SourceQuality "1"]
[TimeControl "5400+30"]

{[%evp 11,106,39,55,18,7,11,17,17,30,32,29,26,8,12,25,21,43,43,40,36,35,16,34,25,41,45,54,20,57,57,78,75,85,73,73,75,75,85,100,100,132,129,119,128,130,118,114,88,87,100,89,62,60,0,53,0,0,0,0,0,0,0,0,0,0,0,0,0,0,0,0,0,0,0,0,0,0,0,0,0,0,0,0,0,0,0,0,0,0,0,0,0,0,0,0,0,0]} 1. e4 {[%emt 0:00:02]} c5 {[%emt 0:00:10]} 2. Nf3 {[%emt 0:00:03]} Nc6 {[%emt 0:00:28]} 3. d4 {[%emt 0:00:06]} cxd4 {[%emt 0:00:05]} 4. Nxd4 {[%emt 0:00:01]} g6 {[%emt 0:00:09]} 5. c4 {[%emt 0:00:05]} Nf6 {[%emt 0:00:33]} 6. Nc3 {[%emt 0:00:03]} d6 {[%emt 0:00:10]} 7. h3 {[%emt 0:01:11]} Nxd4 {[%emt 0:04:19]} 8. Qxd4 {[%emt 0:00:10]} Bg7 {[%emt 0:00:06]} 9. Bg5 {[%emt 0:01:06]} O-O {[%emt 0:00:40]} (9... Qa5 {is interesting.} 10. Bd2 O-O 11. Nd5 Qd8) 10. Qd2 {[%emt 0:00:03]} Be6 {[%emt 0:04:58]} 11. Rc1 {[%emt 0:00:28]} a6 {[%emt 0:02:11]} 12. b3 {[%emt 0:05:07]} Qa5 {[%emt 0:03:47]} 13. Bd3 {[%emt 0:00:05]} Rfc8 {[%emt 0:03:35]} 14. Nd5 {[%emt 0:00:20]} Qxd2+ {[%emt 0:00:36]} 15. Kxd2 {[%emt 0:00:01]} Bxd5 {[%emt 0:02:33]} 16. exd5 {[%emt 0:00:02]} h6 {[%emt 0:02:06]} 17. Be3 {[%emt 0:00:23]} Nd7 {[%emt 0:01:11]} 18. g4 {[%emt 0:05:35]} Nc5 {[%emt 0:06:25]} 19. Bc2 {[%emt 0:02:22]} a5 {[%emt 0:03:54]} 20. a4 {[%emt 0:05:41]} Re8 {[%emt 0:05:29]} 21. Rcd1 {[%emt 0:00:25]} b6 {[%emt 0:03:31]} 22. Ke2 {[%emt 0:03:14][%cal Bd2e2,Be2f3,Bf3g2,Bg2f2][%mdl 32]} Rad8 {[%emt 0:09:36]} 23. Kf3 {[%emt 0:03:26]} Rb8 {[%emt 0:03:09]} 24. h4 {[%emt 0:00:49]} Rb7 {[%emt 0:02:07]} 25. Rh3 {[%emt 0:01:27]} Rbb8 {[%emt 0:00:54]} 26. Kg2 {[%emt 0:00:45]} Rbd8 {[%emt 0:00:22]} 27. f4 {[%emt 0:02:43]} e6 {[%emt 0:03:00]} 28. dxe6 {[%emt 0:00:10]} Rxe6 {[%emt 0:00:26]} 29. f5 {[%emt 0:00:05]} gxf5 {[%emt 0:00:47]} 30. Bxf5 {[%emt 0:00:02]} Re5 {[%emt 0:01:50]} 31. Kf2 {[%emt 0:04:17]} Rde8 {[%emt 0:01:21]} 32. Bc2 {[%emt 0:00:14] This pair of bishops is nice.} (32. Rxd6 $2 {too greedy.} Rxf5+ (32... Nxb3 33. Rd5 $11) 33. gxf5 Ne4+ (33... Nxb3 $2 34. Rg3 $18) 34. Kf1 Nxd6 $19) (32. Bf4 $1 $14) 32... R5e6 {[%emt 0:02:00]} (32... Bf6 $11) 33. Rf3 {[%emt 0:00:52]} (33. g5 $14) 33... Bf6 $11 {[%emt 0:02:34] The position is equal.} 34. Rh1 {[%emt 0:01:07]} (34. Bxh6 $2 {loses.} Bxh4+ 35. Kf1 Rxh6 $19) 34... Rxe3 {[%emt 0:01:47]} 35. Rxe3 {[%emt 0:00:07]} Bd4 {[%emt 0:00:06]} 36. Rhe1 {[%emt 0:00:08]} f6 {[%emt 0:02:17]} 37. Kf3 {[%emt 0:00:14]} Bxe3 {[%emt 0:00:08]} 38. Rxe3 {[%emt 0:00:01][%mdl 4096] Endgame. KRB-KRN} Re5 {[%emt 0:01:58]} 39. Re2 {[%emt 0:00:21]} Kf7 {[%emt 0:01:13]} 40. Rd2 {[%emt 0:00:07]} Ke7 {[%emt 0:00:06]} 41. Rd1 {[%emt 0:00:04]} Ne6 {[%emt 0:01:08]} 42. Bf5 {[%emt 0:00:19]} Nc5 {[%emt 0:00:24]} 43. Rb1 {[%emt 0:00:04]} Kd8 {[%emt 0:01:16]} 44. Bc2 {[%emt 0:00:15]} Ne6 {[%emt 0:01:09]} 45. Rd1 {[%emt 0:00:18] Prevents Nd4+} Ke7 {[%emt 0:00:14]} 46. Kf2 {[%emt 0:00:57]} Nc5 {[%emt 0:00:48]} 47. Rg1 {[%emt 0:00:17]} Ne6 {[%emt 0:01:19]} 48. Rg3 {[%emt 0:00:47]} Nc5 {[%emt 0:00:20]} 49. Rf3 {[%emt 0:00:23]} Ne6 {[%emt 0:00:17]} 50. Rd3 {[%emt 0:04:09] Wards off Nd4} Nc5 {[%emt 0:00:32]} 51. Rd1 {[%emt 0:00:09]} Ne6 {[%emt 0:00:53]} 52. Rd5 {[%emt 0:01:37]} Nc5 {[%emt 0:01:13]} 53. Rd2 {[%emt 0:04:13]} Ne6 {[%emt 0:00:08] Weighted Error Value: White=0.08 (flawless) /Black=0.07 (flawless) .  Mistake:       	White=2     	Black=1      Inaccurate:     	White=2     	Black=2      OK:         	White=12    	Black=24     Best:        	---       	Black=2} 1/2-1/2

[Event "VIII Open Semana Santa 2024"]
[Site "San Vicente del Raspeig"]
[Date "2024.03.31"]
[Round "8.5"]
[White "Merario Alarcon, Andres"]
[Black "Marin, Mihail"]
[Result "1/2-1/2"]
[ECO "C02"]
[WhiteElo "2401"]
[BlackElo "2456"]
[Annotator "TA"]
[PlyCount "63"]
[EventDate "2024.03.27"]
[EventType "swiss"]
[EventCountry "ESP"]
[SourceTitle "playchess.com"]
[Source "ChessBase"]
[SourceQuality "1"]
[TimeControl "5400+30"]

{[%evp 11,63,-10,0,-28,-20,-29,-14,-11,0,-10,0,0,18,14,36,33,47,50,211,233,220,103,1152,381,1152,1139,2190,563,563,489,540,545,534,61,27,54,66,8,73,101,63,60,65,75,61,0,0,0,0,0,0,0,0,0]} 1. d4 {[%emt 0:05:57]} e6 {[%emt 0:00:13]} 2. e4 {[%emt 0:01:03]} d5 {[%emt 0:00:06]} 3. e5 {[%emt 0:01:13]} c5 {[%emt 0:00:08]} 4. c3 {[%emt 0:00:12]} Nc6 {[%emt 0:00:05]} 5. Nf3 {[%emt 0:00:49]} Qb6 {[%emt 0:00:06]} 6. Bd3 {[%emt 0:01:19]} cxd4 {[%emt 0:03:47]} 7. O-O {[%emt 0:02:23]} Bd7 {[%emt 0:00:05]} 8. Re1 {[%emt 0:03:59]} Rc8 {[%emt 0:06:12]} 9. Nbd2 {[%emt 0:06:49]} dxc3 {[%emt 0:08:48]} 10. bxc3 {[%emt 0:00:13]} Nge7 {[%emt 0:00:35]} 11. Rb1 {[%emt 0:09:51]} Qc7 {[%emt 0:00:55]} 12. c4 {[%emt 0:05:07]} Ng6 {[%emt 0:14:03][%cal Rg6e5]} 13. cxd5 {[%emt 0:04:41]} exd5 {[%emt 0:01:27]} 14. Ng5 $1 {[%emt 0:08:02] aiming for e6.} Nd8 {[%emt 0:05:40] [#]} (14... Be7 $14 15. Nxf7 (15. e6 fxe6 16. Qh5 Bxg5 $14) 15... O-O (15... Kxf7 $2 16. Qf3+ Ke8 17. Qh5 $16) 16. Bxg6 hxg6) 15. e6 $1 $18 {[%emt 0:16:41][%mdl 512]} Nxe6 {[%emt 0:07:08]} 16. Qh5 {[%emt 0:09:02]} (16. Nxe6 $18 {and White stays clearly on top.} Bxe6 (16... fxe6 $2 17. Qh5 $18) 17. Qa4+ (17. Bb5+ Kd8 $11) 17... Kd8 18. Nf3 (18. Qxa7 Bc5 $14)) 16... Ngf4 $2 {[%emt 0:14:13][%mdl 8192]} (16... Be7 $16) 17. Qxf7+ {[%emt 0:01:31]} Kd8 {[%emt 0:00:04]} 18. Ndf3 {[%emt 0:13:46]} Nxd3 {[%emt 0:03:03]} 19. Nxe6+ {[%emt 0:01:12]} (19. Qxe6 $2 Bxe6 20. Nxe6+ Kd7 21. Nxc7 Nxe1 (21... Rxc7 22. Ne5+ Nxe5 23. Rxe5 $11) (21... Kxc7 22. Re3 $11) 22. Nxd5 Nxf3+ 23. gxf3 Rc2 $19) (19. Nd4 $142 Rb8 20. Ngxe6+ (20. Ndxe6+ Kc8 $18) 20... Kc8 21. Nxc7) 19... Bxe6 {[%emt 0:00:07]} 20. Bg5+ {[%emt 0:00:07]} Be7 {[%emt 0:00:19]} 21. Qxe6 {[%emt 0:00:10][%cal Rg5e7]} (21. Rxe6 Bxg5 22. Nxg5 (22. Qf5 Be7 $16) 22... Qxf7 (22... Qc1+ $2 23. Re1 $18) 23. Nxf7+ Kd7 24. Rd6+ (24. Rxb7+ $2 Kxe6 25. h4 Rhe8 $19) 24... Kc7 $18) 21... Nxe1 {[%emt 0:01:06]} 22. Qxd5+ {[%emt 0:03:40]} (22. Rxe1 $18 {[%cal Rg5e7]} Bxg5 23. Qxd5+ Qd7 24. Qxg5+ Kc7 25. Re7 Qxe7 26. Qxe7+ Kb8 27. h4 (27. Qxg7 $2 {gets mated.} Rc1+)) 22... Qd7 $14 {[%emt 0:03:29]} 23. Bxe7+ {[%emt 0:00:09]} Ke8 $1 {[%emt 0:04:03][%cal Bd8e8,Be8f7,Bf7g8][%mdl 32]} (23... Kxe7 $2 {loses.} 24. Rxe1+ Kd8 25. Qg5+ Kc7 26. Re7 $18) 24. Qh5+ {[%emt 0:03:44]} (24. Qxb7 $2 {is the wrong capture.} Nxf3+ 25. Qxf3 Qxe7 $19) (24. Qxd7+ $14 Kxd7 25. Rxe1) 24... g6 {[%emt 0:00:14]} (24... Kxe7 $11 {remains equal.} 25. Ne5 Qe6) 25. Qe5 $16 {[%emt 0:00:07] [#] Threatening mate with Bd6+. Dancing on a razor blade.} Nxf3+ {[%emt 0:01:16]} 26. gxf3 {[%emt 0:00:03]} Kf7 {[%emt 0:06:55]} 27. Qf6+ {[%emt 0:00:45]} Kg8 {[%emt 0:00:05]} 28. Rxb7 {[%emt 0:01:23] White is more active.} Qxb7 $11 {[%emt 0:00:55] The position is equal.} 29. Qe6+ {[%emt 0:00:04]} Kg7 {[%emt 0:00:04]} 30. Qf6+ {[%emt 0:00:20]} Kg8 {[%emt 0:00:33]} 31. Qe6+ {[%emt 0:00:04]} Kg7 {[%emt 0:00:09]} 32. Qf6+ {[%emt 0:01:09] White really could win this.   Weighted Error Value: White=0.64/Black=0.23 (precise) .  Loses game:     	---       	Black=2      Missed win:     	White=1     	---        Mistake:       	White=3     	Black=1      Inaccurate:     	---       	Black=2      OK:         	White=10    	Black=4      Best:        	White=4     	Black=5      Strong:       	White=1     	Black=1} 1/2-1/2

[Event "VIII Open Semana Santa 2024"]
[Site "San Vicente del Raspeig"]
[Date "2024.03.31"]
[Round "8.6"]
[White "Shuvalova, Polina"]
[Black "Garrido Outon, Alex"]
[Result "1-0"]
[ECO "B94"]
[WhiteElo "2455"]
[BlackElo "2407"]
[Annotator "TA"]
[PlyCount "65"]
[EventDate "2024.03.27"]
[EventType "swiss"]
[EventCountry "ESP"]
[SourceTitle "playchess.com"]
[Source "ChessBase"]
[SourceQuality "1"]
[TimeControl "5400+30"]

{[%evp 12,65,34,13,13,9,25,0,4,0,0,0,0,0,0,0,0,0,22,13,27,13,27,26,8,21,5,10,9,22,15,12,22,0,22,-15,4,20,150,152,323,96,100,91,102,95,148,146,533,534,532,229,657,618,617,593]} 1. e4 {[%emt 0:00:03]} c5 {[%emt 0:02:08]} 2. Nf3 {[%emt 0:00:04]} d6 {[%emt 0:00:05]} 3. d4 {[%emt 0:00:02]} cxd4 {[%emt 0:00:07]} 4. Nxd4 {[%emt 0:00:02]} Nf6 {[%emt 0:00:07]} 5. Nc3 {[%emt 0:00:06]} a6 {[%emt 0:00:04]} 6. Bg5 {[%emt 0:00:04]} Nbd7 {[%emt 0:00:07]} 7. Bc4 {[%emt 0:00:06]} Qb6 {[%emt 0:00:14]} 8. Bb3 {[%emt 0:00:08]} e6 {[%emt 0:00:08]} 9. Qd2 {[%emt 0:00:11]} Be7 {[%emt 0:00:30] The position is equal.} 10. O-O-O {[%emt 0:00:20]} Nc5 {[%emt 0:00:35]} 11. f3 {[%emt 0:00:04]} Qc7 {[%emt 0:01:43]} 12. g4 {[%emt 0:00:29]} Bd7 {[%emt 0:02:22]} 13. a3 {[%emt 0:00:52]} b5 {[%emt 0:02:31]} 14. Ba2 {[%emt 0:00:20]} Rb8 {[%emt 0:13:17]} 15. b4 {[%emt 0:00:53]} Na4 {[%emt 0:00:45]} 16. Nxa4 {[%emt 0:02:35]} bxa4 {[%emt 0:00:05]} 17. Kb2 {[%emt 0:00:09]} O-O {[%emt 0:07:17]} 18. Rc1 {[%emt 0:00:22]} a5 $132 {[%emt 0:02:28][%mdl 2048] Strongly threatening ...axb4. Black is not keeping still} 19. c3 {[%emt 0:00:09]} Bc8 {[%emt 0:12:37]} 20. h4 {[%emt 0:03:05]} Ba6 {[%emt 0:00:05]} 21. h5 {[%emt 0:01:51]} Bc4 {[%emt 0:01:53]} (21... h6 22. Bh4 $15) 22. Bb1 {[%emt 0:00:13]} Rfd8 {[%emt 0:12:14]} 23. Rhg1 {[%emt 0:06:33]} (23. Ka1 $5) 23... Kf8 {[%emt 0:10:49]} 24. Bc2 {[%emt 0:06:29]} e5 {[%emt 0:14:59]} (24... Ra8 $11) 25. Nf5 $16 {[%emt 0:00:22]} d5 $2 {[%emt 0:00:34]} (25... Be6 $16) 26. h6 $2 {[%emt 0:09:06]} (26. Bxa4 $2 {perishes.} dxe4 27. Qe1 exf3 $19) (26. Bh6 $1 $18 {[%cal Rh6g7] and the rest is easy.}) 26... g6 {[%emt 0:02:33]} 27. Nxe7 {[%emt 0:00:11]} Qxe7 {[%emt 0:01:59] [#]} 28. Rgd1 $1 {[%emt 0:09:58] Active counter play!} (28. Bxa4 $2 dxe4 29. Qc2 (29. Qe3 axb4 30. cxb4 Rxb4+ 31. axb4 Qxb4+ 32. Bb3 Rd2+ 33. Rc2 Rxc2+ 34. Kxc2 Nd5 $19) 29... exf3 $19) 28... dxe4 {[%emt 0:05:52] [#]} (28... d4 $142) 29. Qe3 $1 {[%emt 0:00:16] Chess con chili.} Bd3 $2 {[%emt 0:01:01][%mdl 8192]} (29... Rdc8 $16 30. Bxa4 (30. fxe4 Qe6 $16) 30... Qe6) 30. Bxa4 $18 {[%emt 0:00:53]} axb4 {[%emt 0:01:25]} 31. axb4 {[%emt 1:00:04]} (31. cxb4 $142 Rd4 32. Bb3) 31... Bc4 $2 {[%emt 0:01:50]} (31... Rdc8 32. fxe4 Bc4) 32. Rxd8+ {[%emt 0:00:00]} Rxd8 {[%emt 0:00:05]} 33. Bxf6 {[%emt 0:00:00] Weighted Error Value: White=0.22 (precise) /Black=0.63.  Loses game:     	---       	Black=2      Missed win:     	White=1     	---        Mistake:       	White=1     	Black=3      Inaccurate:     	White=1     	---        OK:         	White=12    	Black=9      Best:        	White=3     	Black=1      Strong:       	White=2     	---} 1-0